bitfinex/quotes_SOLUSD_20241107
["timestamp","ask_amount","ask_price","bid_price","bid_amount"]
[1730943662713,17.20941475,191.85,191.7,20.0]
[1730943663021,17.20941475,191.84,191.77,17.20941475]
[1730943663227,17.20941475,191.84,191.69,6.391]
[1730943663228,17.20941475,191.82,191.75,17.20941475]
[1730943663841,17.20941475,191.83,191.76,17.20941475]
[1730943664343,17.20941475,191.84,191.77,17.20941475]
[1730943664638,17.20941475,191.85,191.78,17.20941475]
[1730943664848,23.54371475,191.87,191.8,17.20941475]
[1730943665137,17.20941475,191.87,191.8,17.20941475]
[1730943665319,17.20941475,191.86,191.8,0.12549]
[1730943665722,17.20941475,191.87,191.8,17.33490475]
[1730943666044,17.20941475,191.86,191.8,0.12549]
[1730943666333,17.20941475,191.87,191.8,17.33490475]
[1730943666538,17.20941475,191.86,191.79,17.20941475]
[1730943666733,17.20941475,191.84,191.77,17.20941475]
[1730943667114,17.20941475,191.84,191.78,0.12549]
[1730943667515,17.20941475,191.84,191.72,17.20941475]
[1730943667516,17.20941475,191.79,191.72,17.20941475]
[1730943667819,17.20941475,191.8,191.73,17.20941475]
[1730943668024,5.312,191.87,191.69,6.391]
[1730943668025,17.20941475,191.81,191.74,17.20941475]
[1730943668734,17.20941475,191.82,191.75,17.20941475]
[1730943668943,17.20941475,191.81,191.74,17.20941475]
[1730943669430,17.20941475,191.82,191.75,17.20941475]
[1730943669639,17.20941475,191.83,191.76,17.20941475]
[1730943671136,17.20941475,191.8,191.73,17.20941475]
[1730943671322,17.20941475,191.8,191.74,17.20941475]
[1730943671818,17.20941475,191.8,191.74,0.12549]
[1730943672025,7.61788166,191.92,191.69,6.391]
[1730943672026,17.20941475,191.78,191.71,17.20941475]
[1730943672524,6.2138,191.81,191.7,0.12549]
[1730943672727,17.20941475,191.75,191.68,17.20941475]
[1730943672938,17.20941475,191.69,191.6,5.42243899]
[1730943673142,0.1,191.75,191.6,5.42243899]
[1730943673143,17.20941475,191.7,191.63,17.20941475]
[1730943673348,6.3138,191.81,191.69,17.20941475]
[1730943673516,6.3138,191.81,191.62,0.1]
[1730943673517,17.20941475,191.77,191.7,17.20941475]
[1730943673829,0.1,191.86,191.73,17.20941475]
[1730943674022,17.20941475,191.79,191.73,17.20941475]
[1730943674223,17.20941475,191.78,191.71,17.20941475]
[1730943674456,17.20941475,191.75,191.68,17.20941475]
[1730943674740,17.30941475,191.84,191.65,0.1]
[1730943674939,17.20941475,191.78,191.72,17.20941475]
[1730943675438,17.20941475,191.77,191.71,17.20941475]
[1730943675644,17.20941475,191.79,191.72,17.20941475]
[1730943675853,17.20941475,191.78,191.71,17.20941475]
[1730943676342,17.20941475,191.73,191.67,17.20941475]
[1730943676523,17.20941475,191.73,191.68,0.12549]
[1730943676721,22.4476,191.76,191.68,17.20941475]
[1730943676722,17.20941475,191.75,191.68,17.20941475]
[1730943677047,17.20941475,191.74,191.67,17.20941475]
[1730943677348,17.20941475,191.75,191.69,17.20941475]
[1730943677517,39.65701475,191.76,191.69,17.20941475]
[1730943677723,17.20941475,191.75,191.69,17.20941475]
[1730943677919,39.65701475,191.76,191.69,17.20941475]
[1730943678123,17.20941475,191.75,191.69,17.20941475]
[1730943678626,39.65701475,191.76,191.69,17.20941475]
[1730943678945,39.65701475,191.76,191.62,0.1]
[1730943679144,17.20941475,191.75,191.69,17.20941475]
[1730943679747,5.42383195,191.81,191.74,17.20941475]
[1730943679931,17.20941475,191.8,191.74,17.20941475]
[1730943680253,17.20941475,191.79,191.73,17.20941475]
[1730943680463,22.5396,191.82,191.74,17.20941475]
[1730943680754,17.20941475,191.79,191.73,17.20941475]
[1730943680923,17.20941475,191.79,191.72,17.20941475]
[1730943681117,17.20941475,191.76,191.69,17.20941475]
[1730943681322,17.20941475,191.77,191.71,17.20941475]
[1730943681728,17.20941475,191.78,191.71,17.20941475]
[1730943682140,17.20941475,191.77,191.71,17.20941475]
[1730943682341,17.20941475,191.76,191.7,17.20941475]
[1730943682640,17.20941475,191.76,191.69,17.20941475]
[1730943682858,17.20941475,191.76,191.7,17.20941475]
[1730943683634,17.20941475,191.75,191.68,17.20941475]
[1730943683838,0.1,191.8,191.59,6.0342]
[1730943683839,17.20941475,191.73,191.66,17.20941475]
[1730943684144,17.20941475,191.72,191.66,17.20941475]
[1730943684461,17.20941475,191.71,191.64,17.20941475]
[1730943684760,17.20941475,191.73,191.67,17.20941475]
[1730943685269,17.20941475,191.74,191.68,17.20941475]
[1730943685642,17.20941475,191.75,191.68,17.20941475]
[1730943685957,17.20941475,191.76,191.69,17.20941475]
[1730943686339,17.20941475,191.75,191.64,0.12549]
[1730943686552,17.20941475,191.76,191.71,17.20941475]
[1730943686757,17.20941475,191.78,191.71,17.20941475]
[1730943687144,17.20941475,191.77,191.71,17.20941475]
[1730943687349,17.20941475,191.77,191.7,17.20941475]
[1730943688847,17.20941475,191.77,191.63,0.12549]
[1730943688848,17.20941475,191.76,191.69,17.20941475]
[1730943689045,17.20941475,191.75,191.68,17.20941475]
[1730943689449,18.70941475,191.78,191.71,17.20941475]
[1730943689653,17.20941475,191.76,191.69,17.20941475]
[1730943690142,17.20941475,191.77,191.7,17.20941475]
[1730943690556,17.20941475,191.77,191.64,0.12549]
[1730943690557,17.20941475,191.75,191.68,17.20941475]
[1730943690738,1.5,191.78,191.68,17.20941475]
[1730943690938,1.5,191.78,191.59,6.1342]
[1730943690939,17.20941475,191.69,191.59,17.20941475]
[1730943691147,17.20941475,191.6,191.54,17.20941475]
[1730943691350,17.20941475,191.6,191.44,23.27136008]
[1730943691351,0.1,191.6,191.4,7.17834838]
[1730943691665,11.01081196,191.53,191.4,6.0773]
[1730943691960,0.1,191.57,191.4,6.0773]
[1730943691961,11.01081196,191.51,191.4,6.0773]
[1730943692142,11.01081196,191.5,191.34,6.0773]
[1730943692461,11.01081196,191.48,191.42,11.01081196]
[1730943692955,11.01081196,191.5,191.43,11.01081196]
[1730943693156,11.01081196,191.5,191.35,0.1]
[1730943693468,17.22126742,191.48,191.41,17.22126742]
[1730943693665,17.22126742,191.48,191.42,17.22126742]
[1730943694865,0.1,191.52,191.35,0.1]
[1730943694866,17.22126742,191.49,191.43,17.22126742]
[1730943695165,17.22126742,191.5,191.44,17.22126742]
[1730943695380,17.22126742,191.5,191.43,17.22126742]
[1730943695675,17.22126742,191.51,191.45,17.22126742]
[1730943695962,39.83166742,191.55,191.48,17.22126742]
[1730943696263,39.83166742,191.55,191.41,0.12549]
[1730943696264,22.6104,191.55,191.53,17.22126742]
[1730943696441,22.6104,191.55,191.52,17.22126742]
[1730943696762,17.22126742,191.59,191.53,17.22126742]
[1730943697144,23.66856742,191.61,191.54,17.22126742]
[1730943697350,6.4473,191.61,191.56,17.22126742]
[1730943698763,6.4473,191.61,191.58,17.22126742]
[1730943699140,17.22126742,191.66,191.6,17.22126742]
[1730943699347,23.70566742,191.67,191.6,17.22126742]
[1730943699563,6.4844,191.67,191.62,17.22126742]
[1730943699983,23.70566742,191.67,191.61,17.22126742]
[1730943700861,6.4844,191.67,191.61,17.22126742]
[1730943701458,6.4844,191.67,191.61,27.49946764]
[1730943701857,6.4844,191.67,191.62,27.49946764]
[1730943702053,6.4844,191.67,191.61,27.49946764]
[1730943702255,33.98386764,191.67,191.6,27.49946764]
[1730943702767,33.98386764,191.67,191.61,27.49946764]
[1730943703469,27.49946764,191.64,191.58,27.49946764]
[1730943703673,27.49946764,191.63,191.56,27.49946764]
[1730943703855,27.49946764,191.65,191.58,27.49946764]
[1730943704060,27.49946764,191.64,191.58,27.49946764]
[1730943704668,27.49946764,191.62,191.56,27.49946764]
[1730943704867,27.49946764,191.63,191.56,27.49946764]
[1730943705067,27.49946764,191.63,191.57,27.49946764]
[1730943705271,27.49946764,191.65,191.58,27.49946764]
[1730943706284,27.49946764,191.65,191.59,27.49946764]
[1730943706466,27.49946764,191.65,191.58,27.49946764]
[1730943707474,27.49946764,191.65,191.59,27.49946764]
[1730943707679,27.49946764,191.65,191.51,27.49946764]
[1730943707680,27.49946764,191.64,191.58,27.49946764]
[1730943708060,27.49946764,191.65,191.58,27.49946764]
[1730943708268,27.49946764,191.65,191.59,27.49946764]
[1730943708595,27.49946764,191.65,191.58,27.49946764]
[1730943708965,27.49946764,191.62,191.56,27.49946764]
[1730943709600,27.49946764,191.6,191.53,27.49946764]
[1730943709759,27.49946764,191.64,191.57,27.49946764]
[1730943709960,27.49946764,191.62,191.56,27.49946764]
[1730943710461,27.49946764,191.64,191.57,27.49946764]
[1730943710665,5.42953948,191.67,191.63,27.49946764]
[1730943710866,27.49946764,191.72,191.65,27.49946764]
[1730943711184,27.49946764,191.72,191.51,27.59946764]
[1730943711185,27.49946764,191.68,191.61,27.49946764]
[1730943711487,27.49946764,191.67,191.6,27.49946764]
[1730943712359,27.49946764,191.67,191.61,27.49946764]
[1730943712764,27.49946764,191.66,191.6,27.49946764]
[1730943712994,27.49946764,191.67,191.6,27.49946764]
[1730943713159,27.49946764,191.64,191.57,27.49946764]
[1730943714176,27.49946764,191.67,191.6,27.49946764]
[1730943714383,27.49946764,191.67,191.52,0.12549]
[1730943714384,27.49946764,191.71,191.64,27.49946764]
[1730943714583,27.49946764,191.72,191.65,27.49946764]
[1730943714959,54.73780726,191.73,191.65,27.49946764]
[1730943715162,27.49946764,191.72,191.65,27.49946764]
[1730943715592,27.23833962,191.73,191.66,27.49946764]
[1730943715593,54.73780726,191.73,191.66,27.49946764]
[1730943715892,15.5837,191.73,191.72,27.49946764]
[1730943716788,15.5837,191.73,191.71,27.49946764]
[1730943716964,15.5837,191.73,191.7,27.49946764]
[1730943717164,15.5837,191.73,191.69,27.49946764]
[1730943717686,15.5837,191.73,191.71,27.49946764]
[1730943719470,15.5837,191.73,191.7,27.49946764]
[1730943720872,15.5837,191.73,191.62,27.49946764]
[1730943720873,15.6837,191.73,191.69,27.49946764]
[1730943721387,0.1,191.71,191.68,17.17491642]
[1730943721684,0.1,191.71,191.66,17.17491642]
[1730943721889,15.6837,191.73,191.68,17.17491642]
[1730943722268,15.6837,191.73,191.55,0.22549]
[1730943722468,15.6837,191.73,191.68,17.17491642]
[1730943722682,0.1,191.71,191.66,17.17491642]
[1730943722986,0.1,191.69,191.65,17.17491642]
[1730943723888,0.1,191.69,191.66,17.17491642]
[1730943724382,15.5837,191.73,191.68,17.17491642]
[1730943724685,15.5837,191.73,191.7,17.17491642]
[1730943724909,0.1,191.72,191.7,17.17491642]
[1730943725091,15.6837,191.73,191.69,17.17491642]
[1730943725273,0.1,191.72,191.69,17.17491642]
[1730943725587,15.6837,191.73,191.69,17.17491642]
[1730943725898,15.5837,191.73,191.71,17.17491642]
[1730943726100,15.5837,191.73,191.7,17.17491642]
[1730943726575,15.5837,191.73,191.62,17.17491642]
[1730943726576,15.6837,191.73,191.69,17.17491642]
[1730943726892,15.5837,191.73,191.7,17.17491642]
[1730943727469,15.5837,191.73,191.71,17.17491642]
[1730943727470,5.43683242,191.72,191.71,17.17491642]
[1730943727771,5.43683242,191.72,191.7,17.17491642]
[1730943728890,24.4204,191.78,191.71,17.17491642]
[1730943729078,24.4204,191.78,191.62,17.17491642]
[1730943729079,24.4204,191.78,191.76,17.17491642]
[1730943729394,24.5204,191.78,191.74,17.17491642]
[1730943729597,0.1,191.77,191.73,17.17491642]
[1730943730084,0.1,191.77,191.62,17.17491642]
[1730943730085,0.1,191.75,191.71,17.17491642]
[1730943730287,0.1,191.75,191.72,17.17491642]
[1730943730588,0.1,191.76,191.72,17.17491642]
[1730943730774,24.5204,191.78,191.72,17.17491642]
[1730943730974,24.4204,191.78,191.73,17.17491642]
[1730943731382,17.17491642,191.77,191.7,17.17491642]
[1730943732092,17.27491642,191.75,191.68,17.17491642]
[1730943732302,0.1,191.73,191.68,17.17491642]
[1730943732678,17.27491642,191.73,191.54,6.5157]
[1730943732875,17.17491642,191.72,191.66,17.17491642]
[1730943733105,0.1,191.72,191.66,17.17491642]
[1730943733398,17.37491642,191.72,191.65,17.17491642]
[1730943733594,0.1,191.7,191.54,6.5157]
[1730943733772,0.1,191.72,191.66,17.17491642]
[1730943733975,0.1,191.71,191.54,6.5157]
[1730943734192,0.1,191.72,191.66,17.17491642]
[1730943734374,0.1,191.7,191.66,17.17491642]
[1730943734576,17.17491642,191.7,191.63,17.17491642]
[1730943734774,17.27491642,191.72,191.65,17.17491642]
[1730943735874,0.1,191.72,191.66,17.17491642]
[1730943736694,17.17491642,191.73,191.66,17.17491642]
[1730943736999,17.37491642,191.75,191.68,17.17491642]
[1730943737185,17.27491642,191.74,191.67,17.17491642]
[1730943737379,0.2,191.74,191.68,17.17491642]
[1730943737583,0.2,191.74,191.67,17.17491642]
[1730943737781,17.27491642,191.74,191.67,17.17491642]
[1730943738198,0.1,191.74,191.55,0.12549]
[1730943738384,0.1,191.74,191.68,17.17491642]
[1730943738803,17.37491642,191.74,191.67,17.17491642]
[1730943739002,17.37491642,191.74,191.55,0.12549]
[1730943739192,0.1,191.73,191.66,17.17491642]
[1730943739387,17.27491642,191.71,191.54,6.5157]
[1730943739590,17.17491642,191.7,191.64,17.17491642]
[1730943739786,22.71075817,191.7,191.64,17.17491642]
[1730943740190,22.71075817,191.7,191.54,6.5157]
[1730943740387,17.17491642,191.66,191.52,16.6172]
[1730943740684,0.1,191.62,191.51,5.43644534]
[1730943740886,17.17491642,191.62,191.55,17.17491642]
[1730943741105,17.17491642,191.63,191.57,17.17491642]
[1730943741492,17.27491642,191.58,191.51,5.43644534]
[1730943741694,17.17491642,191.54,191.51,5.43644534]
[1730943742201,5.34459,191.61,191.51,5.43644534]
[1730943742202,17.27491642,191.53,191.51,5.43644534]
[1730943742395,17.17491642,191.53,191.51,5.43644534]
[1730943742703,17.17491642,191.55,191.51,5.43644534]
[1730943742906,0.1,193.67,191.51,5.43644534]
[1730943742907,17.17491642,191.59,191.51,5.43644534]
[1730943743097,22.6857,191.62,191.51,5.43644534]
[1730943743605,22.6857,191.62,191.58,17.17491642]
[1730943743804,22.6857,191.62,191.57,17.17491642]
[1730943744013,22.6857,191.62,191.59,17.17491642]
[1730943744307,22.6857,191.62,191.58,17.17491642]
[1730943744604,22.6857,191.62,191.57,17.17491642]
[1730943745392,17.17491642,191.61,191.55,17.17491642]
[1730943745708,17.17491642,191.61,191.4,23.58191642]
[1730943745709,17.17491642,191.6,191.53,17.17491642]
[1730943746005,17.27491642,191.6,191.53,17.17491642]
[1730943746179,17.17491642,191.59,191.53,17.17491642]
[1730943746383,17.17491642,191.54,191.41,5.43512758]
[1730943746580,17.17491642,191.53,191.46,17.17491642]
[1730943746805,17.17491642,191.51,191.45,17.17491642]
[1730943747110,17.17491642,191.5,191.44,17.17491642]
[1730943747616,17.17491642,191.5,191.43,17.17491642]
[1730943747779,17.17491642,191.48,191.42,17.17491642]
[1730943747982,17.17491642,191.47,191.41,17.17491642]
[1730943748190,17.17491642,191.48,191.42,17.17491642]
[1730943748727,22.1948,191.51,191.45,17.17491642]
[1730943749005,6.6045,191.55,191.5,17.17491642]
[1730943749207,15.1387,191.57,191.54,17.17491642]
[1730943749384,15.1387,191.57,191.43,0.12549]
[1730943749587,6.6045,191.6,191.55,17.17491642]
[1730943749992,6.6045,191.6,191.56,17.17491642]
[1730943750191,12.03603533,191.6,191.57,17.17491642]
[1730943750390,5.43153533,191.6,191.57,17.17491642]
[1730943750603,32.31361642,191.63,191.57,17.17491642]
[1730943750801,17.17491642,191.62,191.56,17.17491642]
[1730943751312,48.0828464,191.63,191.57,27.5110184]
[1730943751691,20.571828,191.63,191.59,27.5110184]
[1730943751889,6.6045,191.65,191.6,27.5110184]
[1730943752099,27.5110184,191.67,191.61,27.5110184]
[1730943752294,42.6497184,191.69,191.63,27.5110184]
[1730943752609,42.6497184,191.69,191.52,0.22549]
[1730943752610,20.57067341,191.69,191.64,27.5110184]
[1730943752810,20.57067341,191.69,191.52,0.32549]
[1730943752811,5.43197341,191.69,191.66,27.5110184]
[1730943752993,27.5110184,191.73,191.66,27.5110184]
[1730943753198,27.5110184,191.75,191.69,27.5110184]
[1730943753515,5.43329371,191.73,191.69,27.5110184]
[1730943753686,43.6857184,191.76,191.69,27.5110184]
[1730943753890,27.5110184,191.76,191.7,27.5110184]
[1730943754213,32.94447893,191.76,191.69,27.5110184]
[1730943755292,27.5110184,191.75,191.69,27.5110184]
[1730943756104,27.5110184,191.72,191.66,27.5110184]
[1730943756302,5.43346053,191.76,191.68,27.5110184]
[1730943756303,27.5110184,191.74,191.68,27.5110184]
[1730943756491,27.5110184,191.75,191.69,27.5110184]
[1730943757119,27.5110184,191.74,191.68,27.5110184]
[1730943757608,27.5110184,191.75,191.69,27.5110184]
[1730943757924,5.43346053,191.76,191.72,27.5110184]
[1730943758096,1.5,191.78,191.75,27.5110184]
[1730943758421,1.5,191.78,191.77,27.5110184]
[1730943759604,1.5,191.78,191.77,47.7365084]
[1730943760020,28.41455047,191.93,191.8,0.1]
[1730943760208,27.5110184,191.92,191.86,27.5110184]
[1730943760523,27.5110184,191.9,191.84,27.5110184]
[1730943760902,27.5110184,191.89,191.83,27.5110184]
[1730943761303,27.5110184,191.9,191.84,27.5110184]
[1730943762304,27.5110184,191.91,191.85,27.5110184]
[1730943762932,27.5110184,191.9,191.84,27.5110184]
[1730943763326,5.42547565,191.95,191.85,27.5110184]
[1730943763327,27.5110184,191.91,191.85,27.5110184]
[1730943763632,27.5110184,191.9,191.84,27.5110184]
[1730943764204,27.5110184,191.92,191.86,27.5110184]
[1730943764422,27.5110184,191.92,191.77,24.102374]
[1730943764423,27.5110184,191.94,191.88,27.5110184]
[1730943764799,27.5110184,191.94,191.79,0.2]
[1730943764800,27.5110184,191.92,191.86,27.5110184]
[1730943764999,27.5110184,191.9,191.84,27.5110184]
[1730943765511,27.5110184,191.91,191.85,27.5110184]
[1730943765722,27.5110184,191.9,191.84,27.5110184]
[1730943766827,27.5110184,191.92,191.86,27.5110184]
[1730943766997,27.5110184,191.91,191.85,27.5110184]
[1730943767197,27.5110184,191.91,191.84,27.5110184]
[1730943767705,5.42547565,191.95,191.83,27.5110184]
[1730943767706,27.5110184,191.89,191.83,27.5110184]
[1730943771240,27.5110184,191.9,191.84,27.5110184]
[1730943771723,27.5110184,191.89,191.83,27.5110184]
[1730943772810,27.5110184,191.87,191.8,27.5110184]
[1730943773704,27.5110184,191.87,191.81,27.5110184]
[1730943774122,27.5110184,191.87,191.73,0.12549]
[1730943774331,27.5110184,191.87,191.8,27.5110184]
[1730943774744,27.5110184,191.87,191.81,27.5110184]
[1730943775445,17.15153248,191.88,191.82,17.15153248]
[1730943775642,17.15153248,191.88,191.74,23.776884]
[1730943775643,15.2366,191.91,191.85,17.15153248]
[1730943775941,17.15153248,191.9,191.84,17.15153248]
[1730943776129,17.15153248,191.9,191.83,17.15153248]
[1730943778545,17.15153248,191.88,191.82,17.15153248]
[1730943778720,17.15153248,191.89,191.83,17.15153248]
[1730943778920,17.15153248,191.9,191.83,17.15153248]
[1730943779120,17.15153248,191.9,191.84,17.15153248]
[1730943779322,15.2366,191.91,191.85,17.15153248]
[1730943779529,17.15153248,191.92,191.86,17.15153248]
[1730943779745,17.15153248,191.92,191.85,17.15153248]
[1730943780321,17.15153248,191.92,191.86,17.15153248]
[1730943780544,17.15153248,191.92,191.85,17.15153248]
[1730943780942,10.63136835,191.93,191.85,17.15153248]
[1730943781142,17.15153248,191.91,191.85,17.15153248]
[1730943781344,5.42106835,191.93,191.77,0.1]
[1730943781345,17.15153248,191.9,191.77,0.1]
[1730943781550,17.15153248,191.91,191.84,17.15153248]
[1730943781849,17.15153248,191.91,191.85,17.15153248]
[1730943782023,17.15153248,191.92,191.85,17.15153248]
[1730943782226,5.42106835,191.93,191.87,17.15153248]
[1730943782526,0.5876006,191.97,191.91,17.15153248]
[1730943782744,17.73913308,191.97,191.91,17.15153248]
[1730943784751,17.73913308,191.97,191.9,17.15153248]
[1730943785630,17.15153248,191.96,191.9,17.15153248]
[1730943785958,0.5876006,191.97,191.87,17.15153248]
[1730943785959,17.15153248,191.93,191.87,17.15153248]
[1730943786823,17.15153248,191.94,191.88,17.15153248]
[1730943787235,17.15153248,191.93,191.87,17.15153248]
[1730943789031,17.15153248,191.92,191.86,17.15153248]
[1730943789444,17.15153248,191.93,191.87,17.15153248]
[1730943789828,17.15153248,191.92,191.86,17.15153248]
[1730943790452,17.15153248,191.92,191.85,17.15153248]
[1730943790851,17.15153248,191.9,191.84,17.15153248]
[1730943791736,17.15153248,191.88,191.83,17.15153248]
[1730943792255,17.15153248,191.9,191.84,17.15153248]
[1730943792652,0.7876006,191.97,191.86,17.15153248]
[1730943792653,0.5876006,191.97,191.86,17.15153248]
[1730943792858,17.15153248,191.95,191.89,17.15153248]
[1730943793154,17.15153248,191.94,191.87,17.15153248]
[1730943793363,17.15153248,191.93,191.87,17.15153248]
[1730943793541,17.15153248,191.92,191.85,17.15153248]
[1730943793741,17.15153248,191.92,191.86,17.15153248]
[1730943793946,0.5876006,191.97,191.78,24.002374]
[1730943793947,17.15153248,191.93,191.87,17.15153248]
[1730943794259,17.15153248,191.92,191.86,17.15153248]
[1730943794570,17.15153248,191.91,191.78,23.776884]
[1730943794733,17.15153248,191.87,191.74,0.1]
[1730943794940,17.15153248,191.87,191.8,17.15153248]
[1730943795167,17.15153248,191.87,191.81,17.15153248]
[1730943795852,17.15153248,191.86,191.8,17.15153248]
[1730943796158,20.3897,191.94,191.85,17.15153248]
[1730943796330,17.15153248,191.9,191.74,0.2]
[1730943796530,0.12549,191.91,191.8,17.15153248]
[1730943796740,6.1144,191.9,191.79,17.15153248]
[1730943796950,17.15153248,191.85,191.79,17.15153248]
[1730943797477,17.15153248,191.85,191.78,17.15153248]
[1730943797657,17.15153248,191.84,191.78,17.15153248]
[1730943797845,17.15153248,191.84,191.71,17.15153248]
[1730943797846,17.15153248,191.79,191.71,17.15153248]
[1730943798042,16.6234,191.83,191.66,6.1704]
[1730943798043,6.1144,191.77,191.66,17.15153248]
[1730943798245,17.15153248,191.72,191.66,17.15153248]
[1730943798464,7.0156,191.77,191.62,0.1]
[1730943798665,7.0156,191.77,191.62,0.2]
[1730943798666,0.9012,191.77,191.62,0.2]
[1730943798959,0.9012,191.77,191.62,0.1]
[1730943799357,0.9012,191.77,191.63,0.1]
[1730943799863,0.9012,191.77,191.72,17.15153248]
[1730943800250,17.15153248,191.76,191.59,6.1704]
[1730943800550,17.15153248,191.7,191.64,17.15153248]
[1730943800754,0.12549,191.76,191.62,17.15153248]
[1730943800755,17.15153248,191.69,191.62,17.15153248]
[1730943800971,17.15153248,191.68,191.62,17.15153248]
[1730943801167,22.2073,191.71,191.54,6.3136]
[1730943801168,17.15153248,191.67,191.61,17.15153248]
[1730943801368,22.2073,191.71,191.54,6.3136]
[1730943801369,27.50901305,191.64,191.58,27.50901305]
[1730943801666,27.50901305,191.67,191.61,27.50901305]
[1730943801844,27.50901305,191.66,191.59,27.50901305]
[1730943802045,27.50901305,191.65,191.59,27.50901305]
[1730943802274,27.50901305,191.65,191.58,27.50901305]
[1730943802566,27.50901305,191.64,191.57,27.50901305]
[1730943802867,27.50901305,191.63,191.57,27.50901305]
[1730943803465,27.50901305,191.64,191.57,27.50901305]
[1730943803773,5.2173,191.67,191.51,27.50901305]
[1730943803774,27.50901305,191.65,191.58,27.50901305]
[1730943803956,27.50901305,191.65,191.59,27.50901305]
[1730943804875,27.50901305,191.64,191.57,27.50901305]
[1730943805049,27.50901305,191.63,191.57,27.50901305]
[1730943805862,5.41227031,191.66,191.57,27.50901305]
[1730943805863,27.50901305,191.64,191.57,27.50901305]
[1730943806069,27.50901305,191.65,191.58,27.50901305]
[1730943806286,27.50901305,191.63,191.44,0.1]
[1730943806445,27.50901305,191.63,191.57,27.50901305]
[1730943806642,27.50901305,191.65,191.58,27.50901305]
[1730943807046,27.50901305,191.64,191.58,27.50901305]
[1730943807249,27.50901305,191.65,191.58,27.50901305]
[1730943807843,27.50901305,191.64,191.57,27.50901305]
[1730943808247,27.50901305,191.63,191.56,27.50901305]
[1730943809048,27.50901305,191.63,191.57,27.50901305]
[1730943809453,27.50901305,191.63,191.56,27.50901305]
[1730943809666,27.50901305,191.6,191.53,27.50901305]
[1730943809975,27.50901305,191.58,191.52,27.50901305]
[1730943810273,27.50901305,191.58,191.51,27.50901305]
[1730943810654,27.50901305,191.58,191.52,27.50901305]
[1730943811053,27.50901305,191.58,191.51,27.50901305]
[1730943811272,50.21191305,191.59,191.53,27.50901305]
[1730943811651,27.50901305,191.57,191.5,27.50901305]
[1730943811846,27.50901305,191.56,191.49,27.50901305]
[1730943812048,27.50901305,191.54,191.48,27.50901305]
[1730943812274,27.50901305,191.54,191.47,27.50901305]
[1730943812571,27.50901305,191.54,191.48,27.50901305]
[1730943812975,32.73001305,191.54,191.47,27.50901305]
[1730943813283,27.63450305,191.53,191.46,27.50901305]
[1730943813469,27.50901305,191.51,191.45,27.50901305]
[1730943813675,27.50901305,191.5,191.44,27.50901305]
[1730943813874,27.50901305,191.49,191.43,27.50901305]
[1730943814168,27.50901305,191.49,191.42,27.50901305]
[1730943814375,27.50901305,191.43,191.35,5.41035022]
[1730943814596,27.50901305,191.43,191.36,27.50901305]
[1730943814952,27.50901305,191.41,191.35,5.41035022]
[1730943815152,27.50901305,191.4,191.35,5.41035022]
[1730943815448,51.41138705,191.37,191.35,5.41035022]
[1730943815673,27.63450305,191.37,191.35,5.41035022]
[1730943815990,27.50901305,191.4,191.35,5.41035022]
[1730943816152,27.50901305,191.42,191.35,32.91936327]
[1730943816352,1.41189804,191.47,191.33,27.50901305]
[1730943816353,27.50901305,191.4,191.33,27.50901305]
[1730943816650,50.12411305,191.38,191.32,27.50901305]
[1730943816851,27.50901305,191.37,191.3,28.09661365]
[1730943817052,27.50901305,191.37,191.3,0.5876006]
[1730943817262,27.50901305,191.34,191.3,0.5876006]
[1730943817458,27.50901305,191.35,191.3,0.5876006]
[1730943817662,23.902374,191.35,191.3,0.5876006]
[1730943818084,51.41138705,191.35,191.3,0.5876006]
[1730943818256,27.50901305,191.36,191.3,28.09661365]
[1730943818459,51.28589705,191.37,191.3,28.09661365]
[1730943818647,27.50901305,191.37,191.31,27.50901305]
[1730943818854,50.12411305,191.38,191.31,27.50901305]
[1730943819054,27.50901305,191.36,191.3,28.09661365]
[1730943819264,27.50901305,191.32,191.3,0.5876006]
[1730943819483,27.50901305,191.33,191.3,0.5876006]
[1730943819685,23.902374,191.33,191.3,0.5876006]
[1730943820352,27.50901305,191.36,191.3,28.09661365]
[1730943820564,22.6151,191.38,191.32,27.50901305]
[1730943820963,22.6151,191.38,191.34,27.50901305]
[1730943821164,16.2721,191.38,191.37,27.50901305]
[1730943822084,0.12549,191.42,191.37,27.50901305]
[1730943822280,6.1502,191.43,191.38,27.50901305]
[1730943824169,0.12549,191.42,191.37,27.50901305]
[1730943824475,27.63450305,191.42,191.36,27.50901305]
[1730943824676,0.12549,191.4,191.34,27.50901305]
[1730943824880,27.50901305,191.39,191.32,27.50901305]
[1730943825458,23.902374,191.42,191.35,27.50901305]
[1730943825680,51.41138705,191.42,191.36,27.50901305]
[1730943826262,23.902374,191.42,191.37,27.50901305]
[1730943826457,6.1502,191.43,191.38,27.50901305]
[1730943826771,6.1502,191.43,191.3,0.5876006]
[1730943826772,6.1502,191.43,191.39,27.50901305]